bitfinex-derivatives/quotes_BTCF0:USTF0_20241221
["timestamp","ask_amount","ask_price","bid_price","bid_amount"]
[1734810884923,0.11255141,97139.0,97138.0,0.413296]
[1734810885230,0.12276841,97139.0,97138.0,0.413296]
[1734810885728,0.11448015,97139.0,97138.0,0.413296]
[1734810886021,0.022217,97139.0,97138.0,0.413296]
[1734810886224,0.03050748,97139.0,97138.0,0.65895114]
[1734810887229,0.03050748,97139.0,97138.0,0.413296]
[1734810887730,0.02029048,97139.0,97138.0,0.413296]
[1734810887925,0.03046737,97139.0,97138.0,0.413296]
[1734810888132,0.03047315,97139.0,97138.0,0.413296]
[1734810888429,0.03051444,97139.0,97138.0,0.413296]
[1734810890623,0.012,97139.0,97138.0,0.413296]
[1734810890812,0.03055396,97139.0,97138.0,0.413296]
[1734810891826,0.03055518,97139.0,97138.0,0.413296]
[1734810893832,0.03053985,97139.0,97138.0,0.413296]
[1734810894019,0.02224992,97139.0,97138.0,0.45205836]
[1734810895430,0.02224992,97139.0,97138.0,0.71123885]
[1734810895729,0.02224992,97139.0,97138.0,0.67247649]
[1734810896124,0.03053777,97139.0,97138.0,0.67247649]
[1734810896520,0.03053922,97139.0,97138.0,0.67247649]
[1734810896925,0.03053921,97139.0,97138.0,0.413296]
[1734810898626,0.03053473,97139.0,97138.0,0.413296]
[1734810899424,0.03053121,97139.0,97138.0,0.413296]
[1734810900925,0.12315197,97139.0,97138.0,0.413296]
[1734810902332,0.03053121,97139.0,97138.0,0.413296]
[1734810903220,0.02223676,97139.0,97138.0,0.413296]
[1734810903424,0.03054316,97139.0,97138.0,0.413296]
[1734810903922,0.02223676,97139.0,97138.0,0.413296]
[1734810904429,0.02250879,97139.0,97138.0,0.56409432]
[1734810904625,0.12349337,97144.0,97138.0,0.63079432]
[1734810904830,0.1845263,97158.0,97147.0,0.3608]
[1734810905034,0.1845263,97158.0,97157.0,0.3608]
[1734810905227,0.19283248,97158.0,97157.0,0.3608]
[1734810906033,0.01730618,97158.0,97157.0,0.3608]
[1734810906341,0.01729027,97158.0,97157.0,0.3608]
[1734810906637,0.02329027,97158.0,97157.0,0.3628]
[1734810907127,0.02329005,97158.0,97157.0,0.37335494]
[1734810907332,0.02329005,97158.0,97157.0,0.3628]
[1734810907532,0.015,97158.0,97157.0,0.3628]
[1734810907733,0.0232928,97158.0,97157.0,0.3628]
[1734810907939,0.0172928,97158.0,97157.0,0.3618]
[1734810908135,0.0202928,97158.0,97157.0,0.3618]
[1734810908530,0.3810928,97158.0,97155.0,0.2458786]
[1734810908731,0.0597788,97157.0,97155.0,0.0316786]
[1734810908939,0.051491,97148.0,97147.0,0.20093777]
[1734810909241,0.4205838,97148.0,97138.0,0.36848271]
[1734810909426,0.051495,97139.0,97138.0,0.36848271]
[1734810909627,0.4205878,97139.0,97130.0,0.30608271]
[1734810909937,0.0515,97131.0,97130.0,0.30608271]
[1734810910234,0.05979731,97131.0,97130.0,0.30608271]
[1734810910746,0.05979731,97131.0,97127.0,0.0015441]
[1734810910747,0.051501,97128.0,97127.0,0.0015441]
[1734810911034,0.05979831,97128.0,97127.0,0.0015441]
[1734810911337,0.051501,97128.0,97127.0,0.0015441]
[1734810913040,0.053501,97128.0,97127.0,0.0015441]
[1734810913932,0.002,97128.0,97127.0,0.0015441]
[1734810914744,0.005,97128.0,97127.0,0.0015441]
[1734810916036,0.002,97128.0,97127.0,0.0015441]
[1734810916343,0.005,97128.0,97127.0,0.0015441]
[1734810916730,0.003,97128.0,97127.0,0.0015441]
[1734810916942,0.001,97128.0,97127.0,0.0015441]
[1734810917141,0.002,97128.0,97127.0,0.0015441]
[1734810917531,0.001,97128.0,97127.0,0.0015441]
[1734810918539,0.051498,97134.0,97127.0,0.0015441]
[1734810918743,0.051498,97134.0,97132.0,0.051499]
[1734810919833,0.052498,97134.0,97132.0,0.051499]
[1734810920034,0.053498,97134.0,97132.0,0.051499]
[1734810920236,0.06381999,97134.0,97132.0,0.051499]
[1734810920438,0.002,97134.0,97132.0,0.051499]
[1734810920636,0.002,97134.0,97133.0,0.07]
[1734810920840,0.01332199,97134.0,97133.0,0.07]
[1734810922138,0.01333047,97134.0,97133.0,0.07]
[1734810922333,0.01133047,97134.0,97133.0,0.07]
[1734810922536,0.01333047,97134.0,97133.0,0.07]
[1734810922745,0.01333047,97134.0,97125.0,0.3608]
[1734810922746,0.051501,97128.0,97127.0,0.051501]
[1734810923135,0.06183147,97128.0,97127.0,0.051501]
[1734810924446,0.06185403,97128.0,97127.0,0.051501]
[1734810925039,0.01235303,97128.0,97127.0,0.051501]
[1734810925346,0.01535303,97128.0,97127.0,0.051501]
[1734810925749,0.01537889,97128.0,97127.0,0.051501]
[1734810926638,0.005,97128.0,97127.0,0.051501]
[1734810926835,0.002,97128.0,97127.0,0.051501]
[1734810927041,0.01537889,97128.0,97127.0,0.051501]
[1734810930247,0.005,97128.0,97127.0,0.051501]
[1734810933049,0.0103242,97139.0,97138.0,0.051496]
[1734810933250,0.01032372,97139.0,97138.0,0.051496]
[1734810933742,0.01032372,97142.0,97141.0,0.051494]
[1734810934046,0.19537003,97148.0,97146.0,0.051492]
[1734810934249,0.1845263,97148.0,97147.0,0.0693]
[1734810934650,0.01032372,97152.0,97150.0,0.051489]
[1734810934955,0.06181072,97155.0,97153.0,0.051488]
[1734810935147,0.01032372,97154.0,97153.0,0.051488]
[1734810936043,0.01033062,97154.0,97153.0,0.051488]
[1734810936649,0.0103341,97154.0,97153.0,0.051488]
[1734810937552,0.01864895,97154.0,97153.0,0.051488]
[1734810938050,0.0243341,97154.0,97153.0,0.052488]
[1734810938252,0.03264895,97154.0,97153.0,0.001]
[1734810938949,0.3934885,97154.0,97136.0,0.051497]
[1734810939145,0.051494,97141.0,97140.0,0.18449743]
[1734810939341,0.07018307,97141.0,97140.0,0.18449743]
[1734810939552,0.43098307,97141.0,97140.0,0.18449743]
[1734810940645,0.43098307,97141.0,97121.0,0.18439499]
[1734810940646,0.051502,97126.0,97121.0,0.18439499]
[1734810940951,0.39710695,97125.0,97112.0,0.30732499]
[1734810941143,0.412309,97113.0,97112.0,0.30732499]
[1734810941347,0.44861595,97113.0,97112.0,0.30732499]
[1734810941553,0.44858658,97113.0,97112.0,0.30732499]
[1734810941752,0.74858658,97113.0,97112.0,0.30732499]
[1734810941957,0.051518,97096.0,97092.0,0.1305]
[1734810942252,0.42308419,97096.0,97095.0,0.42989649]
[1734810942444,0.05152,97094.0,97092.0,0.1305]
[1734810942645,0.01076619,97093.0,97092.0,0.0628]
[1734810942844,0.01084381,97093.0,97077.0,0.42652011]
[1734810943051,0.01076619,97092.0,97078.0,0.1345]
[1734810943265,0.01076619,97091.0,97084.0,0.051524]
[1734810943848,0.15398505,97091.0,97084.0,0.051524]
[1734810944156,0.15398505,97091.0,97078.0,0.1345]
[1734810944157,0.051523,97087.0,97078.0,0.1345]
[1734810944656,0.051523,97087.0,97080.0,0.051526]
[1734810944844,0.051524,97085.0,97080.0,0.051526]
[1734810945242,0.15264443,97090.0,97078.0,0.1435]
[1734810945443,0.001,97087.0,97078.0,0.1505]
[1734810945649,0.051527,97079.0,97078.0,0.1505]
[1734810946148,0.051527,97079.0,97078.0,0.1435]
[1734810946842,0.002,97085.0,97080.0,0.009]
[1734810947656,0.052524,97085.0,97080.0,0.009]
[1734810947857,0.051525,97083.0,97080.0,0.009]
[1734810948055,0.051526,97081.0,97080.0,0.009]
[1734810948364,0.051522,97090.0,97078.0,0.1395]
[1734810948561,0.01030619,97094.0,97078.0,0.1395]
[1734810948859,0.051525,97084.0,97079.0,0.0688]
[1734810949059,0.051526,97082.0,97080.0,0.002]
[1734810949249,0.051526,97082.0,97080.0,0.003]
[1734810949647,0.051526,97082.0,97080.0,0.001]
[1734810949848,0.051521,97092.0,97080.0,0.001]
[1734810950249,0.051521,97092.0,97084.0,0.051524]
[1734810950451,7.762e-05,97093.0,97087.0,0.051523]
[1734810950660,7.762e-05,97093.0,97088.0,0.051522]
[1734810951157,7.762e-05,97093.0,97080.0,0.15264443]
[1734810951158,7.762e-05,97093.0,97091.0,0.05152]
[1734810951361,0.05159762,97093.0,97087.0,0.3608]
[1734810951555,7.762e-05,97093.0,97089.0,0.051522]
[1734810951752,0.05159762,97093.0,97087.0,0.3712406]
[1734810952058,0.05259762,97093.0,97087.0,0.3712406]
[1734810952461,0.05159762,97093.0,97087.0,0.3712406]
[1734810952657,0.05159762,97093.0,97088.0,0.051522]
[1734810953259,7.762e-05,97093.0,97087.0,0.3712406]
[1734810953459,7.762e-05,97093.0,97089.0,0.051521]
[1734810954657,7.762e-05,97093.0,97089.0,0.052521]
[1734810954856,7.762e-05,97093.0,97091.0,0.051521]
[1734810956259,7.762e-05,97093.0,97091.0,0.052521]
[1734810958863,7.762e-05,97093.0,97091.0,0.001]
[1734810959065,0.05159762,97093.0,97091.0,0.001]
[1734810960558,7.762e-05,97093.0,97091.0,0.05252]
[1734810961869,0.01872728,97119.0,97114.0,0.051509]
[1734810962059,0.15398505,97122.0,97115.0,0.244508]
[1734810962365,0.15398505,97122.0,97119.0,0.051506]
[1734810962971,0.051507,97118.0,97115.0,0.193]
[1734810963162,0.051507,97118.0,97117.0,0.3608]
[1734810964474,0.053507,97118.0,97117.0,0.3608]
[1734810965167,0.057507,97118.0,97117.0,0.3608]
[1734810965461,0.006,97118.0,97117.0,0.3608]
[1734810967567,0.051502,97127.0,97117.0,0.3608]
[1734810967769,0.06193139,97127.0,97125.0,0.3608]
[1734810967964,0.051502,97127.0,97125.0,0.3608]
[1734810968165,0.01042939,97126.0,97125.0,0.3608]
[1734810969364,0.01847879,97126.0,97125.0,0.3618]
[1734810970170,0.02147879,97126.0,97125.0,0.3618]
[1734810970765,0.01047879,97127.0,97126.0,0.051502]
[1734810971073,0.12277072,97128.0,97126.0,0.051502]
[1734810971863,0.003,97127.0,97126.0,0.051502]
[1734810972068,0.005,97127.0,97126.0,0.06257897]
[1734810972576,0.002,97128.0,97126.0,0.06257897]
[1734810972770,0.005,97128.0,97126.0,0.06257897]
[1734810973071,0.003,97128.0,97126.0,0.06157897]
[1734810973371,0.005,97127.0,97126.0,0.06257897]
[1734810974971,0.002,97127.0,97126.0,0.06257897]
[1734810975273,0.003,97128.0,97126.0,0.06157897]
[1734810976170,0.003,97127.0,97126.0,0.01007697]
[1734810976367,0.003,97127.0,97126.0,0.051502]
[1734810977379,0.051502,97126.0,97125.0,0.3608]
[1734810977675,0.051502,97126.0,97117.0,0.37117217]
[1734810977676,0.051506,97118.0,97117.0,0.37117217]
[1734810977978,0.01047879,97125.0,97117.0,0.37117217]
[1734810978173,0.01047879,97124.0,97117.0,0.37117217]
[1734810978474,0.01047879,97123.0,97122.0,0.051504]
[1734810978777,0.003,97126.0,97124.0,0.051503]
[1734810979169,0.01047879,97125.0,97117.0,0.37117217]
[1734810979372,0.01347879,97124.0,97118.0,0.051506]
[1734810979671,0.003,97124.0,97118.0,0.051506]
[1734810979868,0.01347879,97124.0,97118.0,0.051506]
[1734810980072,0.01047879,97123.0,97115.0,0.193]
[1734810980364,0.01047879,97122.0,97115.0,0.193]
[1734810980569,0.01043153,97121.0,97120.0,0.051505]
[1734810980966,0.003,97124.0,97123.0,0.051504]
[1734810981169,0.01343037,97124.0,97123.0,0.051504]
[1734810981363,0.01043037,97124.0,97123.0,0.051504]
[1734810982281,0.01343037,97124.0,97123.0,0.051504]
[1734810982979,0.01343037,97124.0,97115.0,0.193]
[1734810982980,0.01343037,97124.0,97117.0,0.051507]
[1734810983181,0.01343037,97124.0,97115.0,0.193]
[1734810983182,0.01870378,97123.0,97115.0,0.193]
[1734810983372,0.01043037,97122.0,97115.0,0.193]
[1734810983573,0.01043037,97121.0,97115.0,0.193]
[1734810983774,0.13354503,97120.0,97115.0,0.193]
[1734810983971,0.01043037,97119.0,97118.0,0.051506]
[1734810985176,0.01243037,97119.0,97118.0,0.051506]
[1734810986480,0.01246659,97119.0,97118.0,0.051506]
[1734810988584,0.15398505,97123.0,97117.0,0.3608]
[1734810988793,0.05278505,97123.0,97121.0,0.051505]
[1734810989085,0.1845263,97129.0,97127.0,0.051502]
[1734810989280,0.1845263,97129.0,97128.0,0.3608]
[1734810989884,0.19326127,97139.0,97138.0,0.051496]
[1734810990082,0.18493588,97139.0,97138.0,0.412296]
[1734810991378,0.21528068,97150.0,97148.0,0.051491]
[1734810991580,0.05148,97168.0,97166.0,0.051481]
[1734810991881,0.05148,97168.0,97167.0,0.3608]
[1734810992189,0.0598024,97168.0,97167.0,0.3608]
[1734810992688,0.0083224,97168.0,97167.0,0.3608]
[1734810992982,0.01006874,97185.0,97167.0,0.3608]
[1734810992983,0.0083224,97175.0,97167.0,0.3608]
[1734810993185,0.0083224,97187.0,97181.0,0.051473]
[1734810993386,0.0083224,97186.0,97181.0,0.051473]
[1734810993689,0.0083224,97185.0,97181.0,0.051473]
[1734810993875,0.0083224,97184.0,97181.0,0.051473]
[1734810994075,0.0083224,97183.0,97181.0,0.051473]
[1734810994292,0.42304353,97189.0,97184.0,0.051471]
[1734810994293,0.05004048,97186.0,97184.0,0.051471]
[1734810994885,0.05004048,97186.0,97185.0,0.3608]
[1734810995083,0.05004048,97186.0,97184.0,0.051471]
[1734810995587,0.12288874,97189.0,97184.0,0.051471]
[1734810995888,0.006,97186.0,97181.0,0.001]
[1734810996088,0.006,97186.0,97185.0,0.3608]
[1734810997089,0.006,97186.0,97185.0,0.3618]
[1734810997493,0.006,97186.0,97185.0,0.001]
[1734810997494,0.05747,97186.0,97185.0,0.001]
[1734810998093,0.05147,97186.0,97185.0,0.001]
[1734810999086,0.05747,97186.0,97185.0,0.001]
[1734811004697,0.05147,97186.0,97185.0,0.001]
[1734811004899,0.051479,97169.0,97168.0,0.0639]
[1734811005192,0.06758115,97186.0,97142.0,0.0626]
[1734811005193,0.3608,97174.0,97142.0,0.0626]
[1734811005395,0.051493,97144.0,97142.0,0.0626]
[1734811007291,0.051494,97142.0,97141.0,0.00154404]
[1734811008802,0.052494,97142.0,97141.0,0.00154404]
[1734811017495,0.06272255,97142.0,97141.0,0.00154404]
[1734811017906,0.0627283,97142.0,97141.0,0.00154404]
[1734811019312,0.052494,97142.0,97141.0,0.00154404]
[1734811021108,0.052494,97142.0,97141.0,0.05303804]
[1734811021307,0.001,97142.0,97141.0,0.05303804]
[1734811021510,0.12288874,97147.0,97146.0,0.051492]
[1734811022305,0.12288874,97147.0,97145.0,0.0613]
[1734811022507,0.051492,97146.0,97145.0,0.0613]
[1734811022702,0.12288874,97147.0,97146.0,0.051492]
[1734811023125,0.12288874,97147.0,97146.0,0.116292]
[1734811023319,0.051489,97151.0,97146.0,0.0648]
[1734811023521,0.12288874,97163.0,97150.0,0.3608]
[1734811023717,0.051486,97157.0,97152.0,0.051488]
[1734811024013,0.051487,97155.0,97153.0,0.051487]
[1734811024223,0.051484,97161.0,97158.0,0.051485]
[1734811024606,0.051484,97161.0,97159.0,0.0624]
[1734811025712,0.052484,97161.0,97159.0,0.0624]
[1734811026410,0.052484,97161.0,97159.0,0.113884]
[1734811027421,0.052484,97161.0,97159.0,0.474684]
[1734811028214,0.052484,97161.0,97159.0,0.4232]
[1734811028620,0.052484,97161.0,97159.0,0.0624]
[1734811028814,0.051489,97151.0,97150.0,0.3608]
[1734811029212,0.051485,97158.0,97153.0,0.051488]
[1734811029414,0.051487,97156.0,97153.0,0.051488]
[1734811029921,0.051487,97156.0,97155.0,0.051487]
[1734811030112,0.12284329,97159.0,97158.0,0.051485]
[1734811030309,0.12284329,97159.0,97158.0,0.412285]
[1734811031515,0.14373929,97160.0,97158.0,0.412285]
[1734811031920,0.001,97159.0,97158.0,0.412285]
[1734811032424,0.01122334,97159.0,97158.0,0.412285]
[1734811032930,0.01022334,97159.0,97158.0,0.412285]
[1734811034319,0.051487,97156.0,97154.0,0.051487]
[1734811034522,0.01020965,97155.0,97154.0,0.051487]
[1734811038031,0.01020965,97156.0,97154.0,0.051487]
[1734811038234,0.01020965,97155.0,97154.0,0.051487]
[1734811038427,0.01020965,97156.0,97154.0,0.051487]
[1734811038832,0.12284329,97157.0,97156.0,0.051486]
[1734811039227,0.12284329,97157.0,97156.0,0.412286]
[1734811039430,0.21519615,97157.0,97156.0,0.412286]
[1734811039628,0.09235286,97157.0,97156.0,0.412286]
[1734811041035,0.09235286,97164.0,97156.0,0.412286]
[1734811041238,0.09235286,97164.0,97163.0,0.051483]
[1734811042335,0.09435286,97164.0,97163.0,0.051483]
[1734811043239,0.002,97164.0,97163.0,0.051483]
[1734811044440,0.09235286,97172.0,97163.0,0.051483]
[1734811044630,0.12284329,97176.0,97163.0,0.051483]
[1734811044631,0.09235286,97176.0,97171.0,0.3608]
[1734811044831,0.09235286,97176.0,97175.0,0.051476]
[1734811046138,0.09235286,97184.0,97183.0,0.051472]
[1734811046330,0.09235286,97184.0,97183.0,0.412272]
[1734811047434,0.17431229,97189.0,97183.0,0.3608]
[1734811047435,0.05147,97187.0,97183.0,0.3608]
[1734811047634,0.05147,97187.0,97185.0,0.051471]
[1734811048944,0.05347,97187.0,97185.0,0.051471]
[1734811050031,0.002,97187.0,97185.0,0.051471]
[1734811050434,0.002,97187.0,97185.0,0.052471]
[1734811051627,0.09235286,97186.0,97185.0,0.052471]
[1734811051834,0.09235286,97186.0,97185.0,0.001]
[1734811052041,0.051471,97185.0,97184.0,0.3608]
[1734811052245,0.06159308,97185.0,97184.0,0.3608]
[1734811054235,0.06359308,97185.0,97184.0,0.3608]
[1734811056743,0.051474,97180.0,97178.0,0.051474]
[1734811056940,0.01012208,97179.0,97178.0,0.051474]
[1734811057437,0.01040428,97179.0,97178.0,0.051474]
[1734811058142,0.051477,97175.0,97173.0,0.01051439]
[1734811058442,0.06188128,97174.0,97172.0,0.051478]
[1734811058648,0.01040428,97173.0,97172.0,0.051478]
[1734811058940,0.01040428,97173.0,97172.0,0.06174998]
[1734811060346,0.01041301,97173.0,97172.0,0.06174998]
[1734811060847,0.01040564,97173.0,97172.0,0.06174998]
[1734811062546,0.12303819,97173.0,97172.0,0.06174998]
[1734811062741,0.13343961,97173.0,97172.0,0.06174998]
[1734811063243,0.13345141,97173.0,97172.0,0.06174998]
[1734811063743,0.01041322,97173.0,97172.0,0.06174998]
[1734811065450,0.01877401,97173.0,97172.0,0.06174998]
[1734811066453,0.1418122,97173.0,97172.0,0.06174998]
[1734811068146,0.01877401,97173.0,97166.0,0.3608]
[1734811068454,0.05148,97167.0,97166.0,0.3608]
[1734811068752,0.07025401,97167.0,97166.0,0.3608]
[1734811069143,0.01884474,97167.0,97166.0,0.3608]
[1734811069539,0.01884615,97167.0,97166.0,0.3608]
[1734811069743,0.01884615,97167.0,97166.0,0.3618]
[1734811070146,0.01884615,97167.0,97166.0,0.3628]
[1734811070547,0.01884615,97167.0,97166.0,0.3618]
[1734811070844,0.01880584,97167.0,97166.0,0.3618]
[1734811071955,0.01881343,97167.0,97166.0,0.3618]
[1734811072151,0.01881343,97167.0,97166.0,0.3628]
[1734811072458,0.01044505,97167.0,97166.0,0.3628]
[1734811073858,0.10292184,97167.0,97166.0,0.3628]
[1734811074848,0.01044505,97167.0,97166.0,0.3628]
[1734811076358,0.09247679,97169.0,97166.0,0.3628]
[1734811076564,0.01042033,97168.0,97167.0,0.05148]
[1734811077859,0.01042033,97168.0,97167.0,0.05248]
[1734811079156,0.01042033,97168.0,97167.0,0.05348]
[1734811080655,0.09247679,97170.0,97169.0,0.051479]
[1734811080861,0.09247679,97170.0,97169.0,0.09023867]
[1734811081054,0.09247679,97170.0,97169.0,0.19933535]
[1734811081562,0.12329761,97173.0,97169.0,0.14785635]
[1734811081760,0.01039877,97172.0,97170.0,0.051479]
[1734811081955,0.01039877,97171.0,97170.0,0.051479]
[1734811082359,0.01039877,97171.0,97170.0,0.16352101]
[1734811084767,0.10292869,97171.0,97170.0,0.16352101]
[1734811085661,0.10300603,97171.0,97170.0,0.16352101]
[1734811086256,0.01047611,97171.0,97170.0,0.16352101]
[1734811086564,0.09252992,97172.0,97171.0,0.051478]
[1734811086765,0.09252992,97172.0,97171.0,0.09026756]
[1734811086965,0.09252992,97172.0,97171.0,0.20656444]
[1734811087762,0.09252992,97175.0,97174.0,0.051477]
[1734811087951,0.10301822,97175.0,97174.0,0.051477]
[1734811088156,0.10301822,97175.0,97174.0,0.15996414]
[1734811089369,0.0104883,97175.0,97174.0,0.15996414]
[1734811090562,0.09252992,97176.0,97175.0,0.051476]
[1734811090759,0.10305306,97176.0,97175.0,0.412276]
[1734811090957,0.12329761,97180.0,97175.0,0.47999164]
[1734811091158,0.12329761,97180.0,97176.0,0.03879662]
[1734811092064,0.12329761,97180.0,97179.0,0.051474]
[1734811092265,0.09247527,97185.0,97184.0,0.051471]
[1734811092462,0.09247527,97185.0,97184.0,0.412271]
[1734811093659,0.09247527,97186.0,97184.0,0.59708549]
[1734811094057,0.002,97185.0,97184.0,0.59708549]
[1734811094260,0.01020504,97185.0,97184.0,0.59708549]
[1734811094463,0.27027576,97213.0,97194.0,0.051466]
[1734811094763,0.12059137,97196.0,97195.0,0.39956566]
[1734811094968,0.27027576,97213.0,97199.0,0.051464]
[1734811095364,0.27027576,97213.0,97199.0,0.16229864]
[1734811095565,0.27027576,97213.0,97199.0,0.22189864]
[1734811095968,0.21497576,97213.0,97199.0,0.22189864]
[1734811096159,0.08310907,97200.0,97199.0,0.26065462]
[1734811096366,0.06205907,97200.0,97199.0,0.22189864]
[1734811096563,0.18426493,97222.0,97221.0,0.051452]
[1734811096869,0.18426493,97222.0,97221.0,0.412252]
[1734811098171,0.1165,97229.0,97221.0,0.412252]
[1734811098172,0.1165,97229.0,97226.0,0.051449]
[1734811098375,0.1165,97229.0,97228.0,0.051448]
[1734811099771,0.1165,97229.0,97228.0,0.052448]
[1734811100168,0.1165,97229.0,97228.0,0.001]
[1734811100365,0.1185,97229.0,97228.0,0.001]
[1734811104163,0.12890374,97229.0,97228.0,0.001]
[1734811106462,0.1185,97229.0,97228.0,0.001]
[1734811107780,0.002,97229.0,97228.0,0.001]
[1734811107977,0.00829718,97255.0,97228.0,0.1198419]
[1734811108272,0.13126765,97260.0,97244.0,0.3608]
[1734811108468,0.18426493,97247.0,97244.0,0.3608]
[1734811108678,0.18426493,97247.0,97245.0,0.051439]
[1734811110480,0.1209,97260.0,97244.0,0.3608]
[1734811110775,0.1209,97260.0,97250.0,0.152335]
[1734811111310,0.1209,97260.0,97256.0,0.051433]
[1734811111464,0.051433,97257.0,97256.0,0.051433]
[1734811112874,0.1209,97260.0,97258.0,0.051432]
[1734811114168,0.0606,97260.0,97258.0,0.051432]
[1734811114873,0.0606,97260.0,97258.0,0.052432]
[1734811116775,0.3608,97271.0,97270.0,0.051426]
[1734811116974,0.0569,97277.0,97276.0,0.051423]
[1734811118468,0.0587,97289.0,97286.0,0.051417]
[1734811119571,0.3608,97291.0,97286.0,0.052417]
[1734811120484,0.412215,97291.0,97286.0,0.001]
[1734811120680,0.051416,97288.0,97286.0,0.001]
[1734811120880,0.1162,97287.0,97286.0,0.001]
[1734811121971,0.167617,97287.0,97286.0,0.001]
[1734811124781,0.167617,97287.0,97273.0,0.01010355]
[1734811124782,0.051422,97277.0,97263.0,0.3608]
[1734811125080,0.1162,97287.0,97263.0,0.3608]
[1734811125081,0.051425,97273.0,97267.0,0.051427]
[1734811125287,0.0627,97272.0,97270.0,0.051426]
[1734811125478,0.3608,97279.0,97270.0,0.051426]
[1734811125686,0.412221,97279.0,97272.0,0.051425]
[1734811125879,0.4235,97280.0,97266.0,0.06947666]
[1734811126279,0.01020184,97279.0,97274.0,0.051424]
[1734811126479,0.1162,97287.0,97266.0,0.06947666]
[1734811126480,0.01020184,97278.0,97266.0,0.06947666]
[1734811126676,0.01020184,97277.0,97276.0,0.051423]
[1734811126892,0.0582,97287.0,97280.0,0.05142]
[1734811126893,0.01172543,97286.0,97280.0,0.05142]
[1734811127085,0.0582,97287.0,97273.0,0.3608]
[1734811127283,0.051419,97284.0,97279.0,0.051421]
[1734811127984,0.01016948,97283.0,97279.0,0.051421]
[1734811128196,0.01016948,97282.0,97280.0,0.05142]
[1734811128985,0.01016948,97281.0,97280.0,0.05142]
[1734811129591,0.06161608,97281.0,97273.0,0.412224]
[1734811129800,0.06161708,97280.0,97273.0,0.412224]
[1734811129987,0.01019608,97279.0,97273.0,0.412224]
[1734811130182,0.06161808,97278.0,97273.0,0.412224]
[1734811130385,0.01019608,97277.0,97273.0,0.051424]
[1734811130581,0.01019608,97276.0,97273.0,0.051424]
[1734811130786,0.01020524,97275.0,97273.0,0.051424]
[1734811130994,0.01020524,97274.0,97273.0,0.051424]
[1734811131197,0.01020524,97274.0,97255.0,0.0595]
[1734811131402,0.051428,97266.0,97260.0,0.051431]
[1734811131696,0.01020524,97265.0,97260.0,0.051431]
[1734811132082,0.01020524,97265.0,97262.0,0.01031685]
[1734811132288,0.051425,97273.0,97267.0,0.051427]
[1734811132496,0.01023486,97272.0,97267.0,0.051427]
[1734811132686,0.051429,97265.0,97264.0,0.001]
[1734811132888,0.06166386,97265.0,97264.0,0.001]
[1734811133387,0.42246386,97265.0,97264.0,0.001]
[1734811133692,0.43077994,97265.0,97264.0,0.001]
[1734811133888,0.42246194,97265.0,97264.0,0.001]
[1734811134087,0.43077994,97265.0,97264.0,0.001]
[1734811134683,0.051432,97260.0,97255.0,0.0604]
[1734811134882,0.051433,97257.0,97255.0,0.0604]
[1734811135094,0.01023294,97256.0,97253.0,0.05297727]
[1734811135295,0.01023294,97255.0,97253.0,0.05297727]
[1734811135484,0.01023294,97254.0,97253.0,0.05297727]
[1734811136390,0.01855094,97254.0,97253.0,0.05297727]
[1734811136590,0.01859755,97254.0,97253.0,0.05297727]
[1734811137098,0.01859749,97254.0,97253.0,0.05297727]
[1734811139393,0.01860828,97254.0,97253.0,0.05297727]
[1734811140183,0.00832683,97254.0,97253.0,0.05297727]
[1734811141598,0.0083356,97254.0,97253.0,0.05297727]
[1734811144294,0.0083356,97263.0,97253.0,0.00154227]
[1734811144497,0.0083356,97262.0,97259.0,0.051432]
[1734811144797,0.0083356,97262.0,97253.0,0.00154227]
[1734811144798,0.00834281,97261.0,97253.0,0.00154227]
[1734811144991,0.01856269,97260.0,97259.0,0.051432]
[1734811146103,0.03034325,97260.0,97259.0,0.051432]
[1734811146695,0.03034325,97260.0,97259.0,0.412232]
[1734811146898,0.01856269,97260.0,97259.0,0.412232]
[1734811147096,0.01021988,97260.0,97259.0,0.412232]
[1734811148002,0.01021988,97260.0,97259.0,0.418232]
[1734811148205,0.01021988,97260.0,97259.0,0.421232]
[1734811148906,0.01021988,97260.0,97259.0,0.412232]
[1734811149095,0.01021988,97260.0,97259.0,0.417232]
[1734811149699,0.00835489,97273.0,97272.0,0.051425]
[1734811150207,0.02014422,97273.0,97272.0,0.051425]
[1734811150603,0.00835489,97273.0,97272.0,0.051425]
[1734811151598,0.00935489,97273.0,97272.0,0.051425]
[1734811151798,0.00937797,97273.0,97272.0,0.051425]
[1734811152307,0.001,97273.0,97267.0,0.3608]
[1734811152710,0.001,97273.0,97272.0,0.051425]
[1734811153205,0.001,97273.0,97272.0,0.16331292]
[1734811154097,0.01178933,97285.0,97272.0,0.11188792]
[1734811154297,0.01178933,97285.0,97281.0,0.05142]
[1734811155011,0.41273601,97289.0,97284.0,0.051418]
[1734811155193,0.001,97285.0,97284.0,0.051418]
[1734811155906,0.12303174,97285.0,97284.0,0.051418]
[1734811156205,0.12403174,97285.0,97284.0,0.051418]
[1734811156506,0.13240817,97285.0,97284.0,0.051418]
[1734811157006,0.00937643,97285.0,97284.0,0.051418]
[1734811157213,0.00937643,97285.0,97284.0,0.052418]
[1734811157605,0.001,97285.0,97284.0,0.052418]
[1734811158000,0.051417,97286.0,97284.0,0.001]
[1734811158202,0.00837457,97285.0,97284.0,0.001]
[1734811158403,0.13894633,97285.0,97269.0,0.18431646]
[1734811158606,0.051426,97270.0,97269.0,0.18431646]
[1734811158807,0.05980057,97270.0,97269.0,0.18431646]
[1734811159112,0.00837457,97270.0,97269.0,0.18431646]
[1734811159907,0.13140631,97270.0,97268.0,0.06191269]
[1734811160107,0.00837457,97269.0,97268.0,0.06191269]
[1734811160302,0.00837041,97269.0,97268.0,0.051427]
[1734811161413,0.00937041,97269.0,97268.0,0.051427]
[1734811161609,0.01952735,97269.0,97268.0,0.051427]
[1734811163413,0.01115694,97269.0,97268.0,0.051427]
[1734811163819,0.01015694,97269.0,97268.0,0.051427]
[1734811164112,0.02052577,97269.0,97268.0,0.051427]
[1734811164513,0.01215694,97269.0,97268.0,0.051427]